Cogmind - Beta 10.2 *** ADVENTURER MODE // 2021.01.11 @ 21:03:14 Player: Joe The Tech Result: Destroyed by S-10 Pest with Light Assault Rifle Performance ------------- Evolutions (1) 500 Regions Visited (2) 400 Robots Destroyed (45) 225 Value Destroyed (1011) 1011 Prototype IDs (5) 100 Alien Tech Used (0) 0 Bonus (0) 0 TOTAL SCORE: 2236 Bonus ------- None Cogmind --------- Core Integrity 0/400 Matter 500/500 Energy 100/100 System Corruption 2% Temperature Cool (0) Movement Core (350) Ox6 Location -9/Materials Parts ------- > --- POWER (1) -------- (None) > --- PROPULSION (2) --- (None) > --- UTILITY (4) ------ Large Storage Unit High-capacity Matter Pod > --- WEAPON (2) ------- (None) > --- INVENTORY (10) --- Ion Engine Peak State ------------ > --- POWER ------------ Improved Ion Engine > --- PROPULSION ------- Light Treads Light Treads > --- UTILITY ---------- Cooling System Large Storage Unit Improved Sensor Array Shield Generator > --- WEAPON ----------- Particle Gun Heavy Assault Rifle > --- INVENTORY -------- Ion Engine High-capacity Matter Pod Medium Laser Assault Rifle Assault Rifle [Rating: 15] Favorites ----------- Power Ion Engine Engine Ion Engine Propulsion Light Treads Treads Light Treads Utility Large Storage Unit Device Improved Sensor Array Storage Large Storage Unit Weapon Assault Rifle Energy Gun Particle Gun Energy Cannon Light EM Pulse Cannon Ballistic Gun Assault Rifle Special Weapon Welding Torch Special Melee Weapon Datajack Build | -11 -10 -9 ------- Run | Scr Mat Mat Slots Evolved 2 | . . 2 Power . | . . . Propulsion . | . . . Utility 2 | . . 2 Weapon . | . . . Parts Attached 33 | 5 10 18 Power 3 | 1 1 1 Engine 3 | 1 1 1 Core . | . . . Reactor . | . . . Propulsion 6 | 2 2 2 Treads 6 | 2 2 2 Leg . | . . . Wheel . | . . . Hover . | . . . Flight . | . . . Utility 12 | 1 2 9 Device 8 | . . 8 Storage 4 | 1 2 1 Processor . | . . . Hackware . | . . . Protection . | . . . Artifact . | . . . Weapon 12 | 1 5 6 Energy Gun 4 | 1 . 3 Energy Cannon 1 | . 1 . Ballistic Gun 5 | . 3 2 Ballistic Cannon . | . . . Launcher . | . . . Special Weapon 1 | . . 1 Impact Weapon . | . . . Slashing Weapon . | . . . Piercing Weapon . | . . . Special Melee Weapon 1 | . 1 . Unidentified Prototypes . | . . . Parts Lost 13 | . 1 12 Power 1 | . . 1 Propulsion 3 | . . 3 Utility 3 | . . 3 Weapon 6 | . 1 5 Highest Loss Streak 5 | . 1 5 Average Slot Usage (%) 93 | . 94 92 Engine 11 | . 13 10 Treads 23 | . 27 19 Device 12 | . . 24 Storage 21 | . 24 18 Energy Gun 3 | . 1 5 Ballistic Gun 17 | . 22 13 Naked Turns . | . . . Heaviest Build 43 | 11 29 43 Greatest Support 40 | 40 40 40 Greatest Overweight (x) 6 | . 1 6 Average Overweight (x) . | . . . Largest Inventory Capacity 10 | 6 10 10 Average Capacity 9 | 5 9 10 Most Carried 6 | 4 6 5 Average Carried 3 | 1 3 2 Final Capacity 10 | 6 10 10 Final Carried 4 | 1 4 1 Class Distribution -------------------- 82% | Mutant 17% | Scavenger-Mutant Dominant Class ---------------- Mutant | -10/Materials Mutant | -9/Materials Resources | -11 -10 -9 ----------- Run | Scr Mat Mat Matter Collected 1068 | 250 347 471 Remotely . | . . . Salvage Created 1499 | . 364 1135 Parts 100 | . 31 69 Haulers Intercepted . | . . . Recyclers Shooed 2 | . . 2 Parts Field Recycled 1 | . . 1 Retrieved Matter 2 | . . 2 Parts Self-Destructed . | . . . Prevented . | . . . Kills | -11 -10 -9 ------- Run | Scr Mat Mat Combat Hostiles Destroyed 32 | . 10 22 Guns 27 | . 5 22 Cannons 5 | . 5 . Classes Destroyed 8 | . 5 3 Worker 2 | . 1 1 Builder 1 | . . 1 Recycler 3 | . 1 2 Operator 1 | . . 1 Watcher 6 | . 3 3 Swarmer 14 | . 8 6 Grunt 9 | . 2 7 Sentry 9 | . . 9 Best Kill Streak 4 | . 4 4 Combat Bots Only 3 | . 3 3 Max Kills in Single Turn 1 | . 1 1 Gunslinging . | . . . Exploded . | . . . Melee . | . . . Uniques/NPCs Destroyed . | . . . Combat | -11 -10 -9 -------- Run | Scr Mat Mat Damage Taken 1736 | . 280 1456 Core 455 | . 48 407 Absorbed by Shields 183 | . . 183 Core Remaining (%) 90 | 100 80 . Volleys Fired 131 | . 30 101 Largest 2 | . 2 2 Hottest 115 | . 56 115 Shots Fired 212 | . 44 168 Gun 196 | . 30 166 Cannon 14 | . 14 . Launcher . | . . . Special 2 | . . 2 Kinetic 139 | . 28 111 Thermal 59 | . 2 57 Explosive . | . . . Electromagnetic 14 | . 14 . Robot Hit Streak 39 | . 15 39 Robot Miss Streak 2 | . 2 1 Penetration Max . | . . . Secondary Targets . | . . . Shots Hit Robots 179 | . 35 144 Core Hits 70 | . 18 52 Critical Hits 1 | . . 1 Critical Kills 1 | . . 1 Critical Parts Destroyed . | . . . Melee Attacks 3 | . 3 . Impact . | . . . Slashing . | . . . Piercing . | . . . Sneak Attacks 3 | . 3 . Combat Hostiles . | . . . Follow-up Attacks . | . . . Damage Inflicted 2509 | . 578 1931 Guns 2183 | . 266 1917 Cannons 230 | . 230 . Explosions 82 | . 82 . Melee . | . . . Ramming 7 | . . 7 Kinetic 1460 | . 266 1194 Thermal 812 | . 82 730 Explosive . | . . . Electromagnetic 230 | . 230 . Impact . | . . . Slashing . | . . . Piercing . | . . . Highest Corruption 2 | . . 2 Average Corruption 1 | . . 1 Corruption Purged . | . . . Effects 1 | . . 1 Energy Discharges 1 | . . 1 Overload Shots . | . . . Overflow Damage 1 | . 1 . Projectiles . | . . . Explosions 1 | . 1 . Melee . | . . . Knockbacks . | . . . Impact . | . . . Kinetic . | . . . Secondary . | . . . Self-Inflicted Damage . | . . . Shots . | . . . Rammed 15 | . . 15 Targets Rammed 15 | . . 15 Kicked . | . . . Crushed . | . . . Highest Temperature 96 | . 96 60 Average Temperature 30 | . 34 20 Received Heat Transfer 387 | . 24 363 Siege Activations . | . . . Robots Corrupted . | . . . Combat Hostiles . | . . . Parts Fried 1 | . 1 . Impact Corruptions . | . . . Robots Melted . | . . . Combat Hostiles . | . . . Parts Melted 3 | . . 3 Heat Transferred 2024 | . 50 1974 Parts Sabotaged . | . . . Parts Stolen . | . . . Parts Stripped . | . . . Power Chain Reactions 1 | . 1 . Missiles Intercepted . | . . . Alert | -11 -10 -9 ------- Run | Scr Mat Mat Peak Influence 304 | . 146 304 Initial . | . . . Average 65 | . 27 108 Maximum Alert Level 1 | . . 1 Low Security (%) 94 | 100 100 88 Level 1 5 | . . 11 Level 2 . | . . . Level 3 . | . . . Level 4 . | . . . Level 5 . | . . . High Security . | . . . Max Security . | . . . Squads Dispatched 2 | . . 2 Investigation . | . . . Extermination . | . . . Reinforcement 2 | . . 2 Assault . | . . . Garrison . | . . . Intercept . | . . . Construction Impeded . | . . . Haulers Reinforced . | . . . Stealth | -11 -10 -9 --------- Run | Scr Mat Mat Distress Signals 4 | . 1 3 Communications Jammed . | . . . Distress Signals . | . . . Times Spotted 58 | . 17 41 Peak Tracking Total 5 | . 3 5 Tactical Retreats 5 | . . 5 Traps | -11 -10 -9 ------- Run | Scr Mat Mat Traps Triggered 2 | . 2 . Indirectly . | . . . Trap Hack Attempts . | . . . Triggered . | . . . Disarmed . | . . . Reprogrammed . | . . . Reused . | . . . Traps Extracted . | . . . Installed . | . . . Triggered . | . . . Machines | -11 -10 -9 ---------- Run | Scr Mat Mat Machines Disabled 1 | . 1 . Max in Single Turn 1 | . 1 . Machines Sabotaged . | . . . Garrisons Compromised . | . . . Overloaded Fab Kills . | . . . Fab Network Shutdowns . | . . . Hacking | -11 -10 -9 --------- Run | Scr Mat Mat Machines Accessed 14 | . 10 4 Terminals 11 | . 7 4 Fabricators . | . . . Repair Stations 1 | . 1 . Recycling Units 2 | . 2 . Scanalyzers . | . . . Garrison Access . | . . . Total Hacks 35 | . 27 8 Successful 27 | . 21 6 Failed 8 | . 6 2 Catastrophic . | . . . Database Lockouts . | . . . Manual . | . . . Terminals 25 | . 17 8 Fabricators . | . . . Repair Stations 2 | . 2 . Recycling Units 8 | . 8 . Scanalyzers . | . . . Garrison Access . | . . . Terminal Hacks 19 | . 13 6 Record 9 | . 5 4 Prototype ID Bank 3 | . 2 1 Emergency Access Points 1 | . 1 . Alert Level 1 | . 1 . Unreport Threat 1 | . 1 . Locate Traps 1 | . 1 . Maintenance Status 1 | . 1 . Reinforcement Status 1 | . 1 . Zone Layout 1 | . . 1 Fabricator Hacks . | . . . Repair Station Hacks 2 | . 2 . Scan Component 1 | . 1 . Repair 1 | . 1 . Recycling Unit Hacks 6 | . 6 . Recycle Component 1 | . 1 . Process 1 | . 1 . Report Inventory 2 | . 2 . Retrieve Matter 1 | . 1 . Retrieve Components 1 | . 1 . Scanalyzer . | . . . Garrison Access Hacks . | . . . Unauthorized Hacks . | . . . Terminals . | . . . Fabricators . | . . . Repair Stations . | . . . Recycling Units . | . . . Scanalyzers . | . . . Garrison Access . | . . . Data Cores Recovered . | . . . Used . | . . . Hacking Detections 9 | . 7 2 Full Trace Events 1 | . 1 . Feedback Events . | . . . Feedback Blocked . | . . . Robot Schematics Acquired . | . . . Robots Built . | . . . Matter . | . . . Time . | . . . Total Robot Build Rating . | . . . Part Schematics Acquired . | . . . Parts Built . | . . . Matter . | . . . Time . | . . . Total Part Build Rating . | . . . Parts Repaired 1 | . 1 . Time 26 | . 26 . Parts Recycled 1 | . 1 . Recycled Matter 37 | . 37 . Retrieved Matter 37 | . 37 . Retrieved Components 9 | . 9 . Parts Scanalyzed . | . . . Part Schematics Acquired . | . . . Parts Damaged . | . . . Bothacking | -11 -10 -9 ------------ Run | Scr Mat Mat Used RIF Installer . | . . . Robots Hacked 2 | . 2 . Non-combat 2 | . 2 . Combat . | . . . Robot Hacks Applied 3 | . 3 . parse_system 1 | . 1 . no_distress 1 | . 1 . find_recycling 1 | . 1 . Relay Couplers Released . | . . . Robots Rewired . | . . . Allies Hacked . | . . . Hacks Repelled . | . . . Allies | -11 -10 -9 -------- Run | Scr Mat Mat Total Allies . | . . . Largest Group . | . . . Highest-Rated Group . | . . . Highest-Rated Ally . | . . . Total Orders . | . . . Ally Attacks . | . . . Total Damage . | . . . Kills . | . . . Allies Corrupted . | . . . Allies Melted . | . . . Intel | -11 -10 -9 ------- Run | Scr Mat Mat Robot Analysis Total . | . . . Derelict Logs Recovered . | . . . Drone Launches . | . . . Drone Recoveries . | . . . Exploration | -11 -10 -9 ------------- Run | Scr Mat Mat Turns Passed 3339 | 109 1636 1594 Spaces Moved 1670 | 75 935 660 Core 24 | 19 . 5 Treads 1646 | 56 935 655 Legs . | . . . Wheels . | . . . Hover . | . . . Flight . | . . . Fastest Speed 50 | 50 160 160 Average Speed 159 | 132 160 162 Slowest Speed 350 | 160 180 350 Overloaded Moves . | . . . Propulsion Burnouts . | . . . Robots Hopped . | . . . Cave-ins Triggered . | . . . Exploration Rate (%) 55 | 4 98 64 Regions Visited 2 Branch Regions . Pre-discovered Areas . | . . . Known Exits Taken . | . . . Unknown Exits Taken 2 | 1 1 . Scrap Searched . | . . . Spaces Dug . | . . . Terrain Destroyed 3 | . 3 . Melee . | . . . Projectile . | . . . AOE 3 | . 3 . Terrain Rammed . | . . . Walls Destroyed . | . . . Machines Disabled . | . . . Actions | -11 -10 -9 --------- Run | Scr Mat Mat Total 2085 | 85 1029 971 Wait 195 | . 36 159 Move 1668 | 74 934 660 Hop . | . . . Pick Up 30 | 6 13 11 Fast Attach . | . . . Attach 24 | 5 10 9 Detach 1 | . 1 . Swap 9 | . . 9 Drop 9 | . 2 7 Fire 131 | . 30 101 Melee 3 | . 3 . Ram 15 | . . 15 Kick . | . . . Crush . | . . . Escape Stasis . | . . . Rewire . | . . . Trap . | . . . Miscellaneous . | . . . Route ------- -11/Scrapyard -10/Materials (discovered 4 exits: *Mat x3 / [*Min]) -9/Materials (discovered 2 exits: [*Mat] / [*Min]) History --------- Turn | Location | Event 11 | -11/Scrapyard | Discovered new exit (range 13) 110 | -11/Scrapyard | Entered Materials 302 | -10/Materials | Build established: Mutant 849 | -10/Materials | Discovered new exit (range 8) 1140 | -10/Materials | Discovered new exit (range 15) 1381 | -10/Materials | Discovered new exit (range 13) 1504 | -10/Materials | Discovered new exit (range 15) 1557 | -10/Materials | Repaired Ion Engine 1746 | -10/Materials | Entered another Materials area 1746 | -9/Materials | Evolved 2 slots: Utility x2 2354 | -9/Materials | Discovered new exit (range 8) 2724 | -9/Materials | Build established: Scavenger-Mutant 2850 | -9/Materials | Discovered new exit (range 7) 3035 | -9/Materials | Lost 3 parts (3w) 3294 | -9/Materials | Core integrity fell below 50% 3302 | -9/Materials | Build established: Mutant 3321 | -9/Materials | Core integrity fell below 20% 3333 | -9/Materials | Lost 5 parts (1n2u2w) 3340 | -9/Materials | Destroyed by S-10 Pest with Light Assault Rifle Last Messages --------------- R-06 Scavenger collects Lgt. Treads. S-10 Pest destroyed. K-01 Serf collects debris. Med. Laser destroyed. Acquired Welding Torch. Lgt. Treads destroyed. Slammed into S-10 Pest. Destabilizing: System corrupted (+1). R-06 Scavenger collects Lgt. Ion Engine. Slammed into S-10 Pest. Welding Torch destroyed. Slammed into S-10 Pest. Cooling System destroyed. Slammed into S-10 Pest. Destabilizing: System corrupted (+1). Imp. Sensor Array destroyed. Slammed into S-10 Pest. Destabilizing: Core damaged (-8). System corrupted: Energy discharge (-39). Slammed into S-10 Pest. Map ----- +----------------------------------------------------+ | ?????????????????? "???????? ????""???? | | ?????????????????? "???????? ??? ???? | | ?????????????????? """?????? ####/###? | | ?????????????????? ""????????? ## | | ?????????????????? ??????????" | | ?????????????????# ???????????? | | ?????????????????+ #?????????????# " | | ?????????????????# #?????????????# Y | | ?????????????????# #?????????????# %" | | ??????????######## ####??????????# """% | | ??????????# # !!##?????????#!=""" | | ??????????# # !#?????????#%=""" | | ??????????# # !#?????????#* """ | | ??????????# !] + !#??????? / % | | ??????????# [ # !#??????? # | | ??????????# [ # !!##?????????# ### | | ??????????######## ####??????????# #### | | ??????????# [ # ############### # | | ??????????# =# % / | | ??????????# = # # * | | ??????????# """ +% r #=[* | | ??????????# """%# #############+###### = | | ??????????# """%# k#?????????# T #?# | | ??????????######## #?????????# #?# | | ??????????# ?# #?????????# """ #?# | | ??????????# #s@%########??# """ #?# = | | ??????????# #%%%# #??# """ #?#### | | ??????????# %+%%%+ " #??# #????? | | ??????????# #s%%# T #??########????? | | ??????????# #%% #| " #??????????????? | | ??????????######?# #|| #??????????????? | | ???????????????? #|| #??????????????? | | ?????????????? #%######??????????????? | | ???????????? ###???????????????????? | | ??????????+ ##### ##?????????????????????? | | ???????? # ?????# #??????????????????????? | | ??????? ??# ??????# #??????????????????????? | | ??????????#???????#+#??????????????????????? | | ???????????????????????????????????????????? | | ???????????????????????????????????????????? | | ???????????????????????????????????????????? | | ???????????????????????????????????????????? | | ???????????????????????????????????????????? | | ???????????????????????????????????????????? | | ???????????????????????????????????????????? | | ???????????????????????????????????????????? | | ???????????????????????????????????????????? | | ???????????????????????????????????????????? | | ???????????????????????????????????????????? | | ???????????????????????????????????????????? | +----------------------------------------------------+ Best States ------------- Heat Dissipation 50 Energy Generation 12 Energy Capacity 265 Matter Stores 500 Matter Capacity 500 Sight Range 16 Robot Scan Range 13 Terrain Scan Density 10 Resistance: KI 20 Resistance: TH 20 Resistance: EX 20 Resistance: EM 20 Resistance: I 20 Resistance: S 20 Resistance: P 20 Evasion (%) 50 Recoil Reduction 2 Offensive Hacking 10 Item Schematics ----------------- None Robot Schematics ------------------ None Fabricated ------------ Nothing Alien Tech Used ----------------- None Achievements -------------- Everything Is Under Control Challenges ------------ None Game ------ Seed TrackerBombardmentProcessor Manual? 0 Play Time 00:34:42 Cumulative 19.2 hours Start 2021.01.11 @ 20:31:23 End 2021.01.11 @ 21:03:14 Sessions 1 Manual Loads 0 Difficulty Adventurer Special Mode None Game No. 17 Rogue 13 Adventurer 4 Explorer 0 Win Type - Total 0 Types 0/0/0/0/0/0/0/0/0 Lore% 17 Gallery% 23 Achievement% 8 Wizard Run 0 Options --------- ASCII 0 Keyboard 0 Movement Numpad Keybinds 0 Fullscreen 1 Font 24/Smallcaps Map View 76x50 Tactical HUD 0 Map Filters NONE Filters NONE Steam 1 RUN: 99d7b440-9b9a-454b-8e59-8e626ccb02c9